[Event "Titled Tuesday Blitz January 10 Late 2023"]
[White "MunichMouse"]
[Black "Mazurkiewicz, Michal"]
[BlackFideId "1124943"]
[WhiteElo "1993"]
[BlackElo "2145"]
[Result "0-1"]
[Round "05"]
[TimeControl "180+2"]
[Date "2023.01.10"]
[WhiteClock "0:00:06"]
[BlackClock "0:01:44"]

1. d4 {[%clk 0:00:00]}  Nf6 {[%clk 0:00:00]} 2. c4 {[%clk 0:02:28]}  e5 {[%clk 0:02:58]} 3. d5 {[%clk 0:02:27]}  Bb4+ {[%clk 0:02:58]} 4. Bd2 {[%clk 0:02:27]}  Qe7 {[%clk 0:02:55]} 5. a3 {[%clk 0:02:27]}  Bxd2+ {[%clk 0:02:55]} 6. Nxd2 {[%clk 0:02:27]}  a5 {[%clk 0:02:55]} 7. e4 {[%clk 0:02:27]}  d6 {[%clk 0:02:52]} 8. Bd3 {[%clk 0:02:27]}  Na6 {[%clk 0:02:52]} 9. Ne2 {[%clk 0:02:22]}  Nc5 {[%clk 0:02:53]} 10. Bc2 {[%clk 0:02:20]}  a4 {[%clk 0:02:53]} 11. O-O {[%clk 0:02:20]}  Bd7 {[%clk 0:02:53]} 12. g3 {[%clk 0:02:20]}  O-O {[%clk 0:02:53]} 13. Kg2 {[%clk 0:02:13]}  c6 {[%clk 0:02:53]} 14. Nc3 {[%clk 0:02:12]}  cxd5 {[%clk 0:02:48]} 15. cxd5 {[%clk 0:01:57]}  b5 {[%clk 0:02:42]} 16. Qe2 {[%clk 0:01:57]}  Rab8 {[%clk 0:02:41]} 17. Na2 {[%clk 0:01:57]}  g6 {[%clk 0:02:41]} 18. Nb4 {[%clk 0:01:55]}  Nh5 {[%clk 0:02:33]} 19. Rae1 {[%clk 0:01:55]}  f5 {[%clk 0:02:30]} 20. exf5 {[%clk 0:01:46]}  Bxf5 {[%clk 0:02:26]} 21. f4 {[%clk 0:01:45]}  Qd7 {[%clk 0:02:22]} 22. Bxf5 {[%clk 0:01:33]}  Rxf5 {[%clk 0:02:18]} 23. fxe5 {[%clk 0:01:25]}  Rxe5 {[%clk 0:02:13]} 24. Qf2 {[%clk 0:00:57]}  Rxe1 {[%clk 0:02:13]} 25. Rxe1 {[%clk 0:00:56]}  Rf8 {[%clk 0:02:11]} 26. Qe3 {[%clk 0:00:50]}  Qg4 {[%clk 0:02:10]} 27. Kh1 {[%clk 0:00:50]}  Nf6 {[%clk 0:02:07]} 28. Nf3 {[%clk 0:00:18]}  Re8 {[%clk 0:02:03]} 29. Qf2 {[%clk 0:00:06]}  Nfe4 {[%clk 0:01:44]} 0-1


[Site "https://www.chess.com"]

[Event "Titled Tuesday Blitz January 10 Late 2023"]
[White "Vargas, Mauricio"]
[Black "Guimaraes, Wagner Peixoto"]
[WhiteFideId "4404572"]
[BlackFideId "2100940"]
[WhiteElo "2035"]
[BlackElo "2194"]
[Result "0-1"]
[Round "05"]
[TimeControl "180+2"]
[Date "2023.01.10"]
[WhiteClock "0:00:03"]
[BlackClock "0:01:31"]

1. e4 {[%clk 0:00:00]}  c5 {[%clk 0:00:00]} 2. Nc3 {[%clk 0:01:29]}  Nc6 {[%clk 0:03:00]} 3. f4 {[%clk 0:01:25]}  e6 {[%clk 0:02:35]} 4. Nf3 {[%clk 0:01:26]}  Nge7 {[%clk 0:02:34]} 5. d3 {[%clk 0:01:27]}  d5 {[%clk 0:02:34]} 6. e5 {[%clk 0:01:26]}  Nf5 {[%clk 0:02:34]} 7. g3 {[%clk 0:01:26]}  h5 {[%clk 0:02:33]} 8. Bg2 {[%clk 0:01:22]}  Be7 {[%clk 0:02:33]} 9. O-O {[%clk 0:01:21]}  h4 {[%clk 0:02:33]} 10. g4 {[%clk 0:01:21]}  h3 {[%clk 0:02:33]} 11. Bh1 {[%clk 0:01:21]}  Nh4 {[%clk 0:02:34]} 12. Qe1 {[%clk 0:01:13]}  Nxf3+ {[%clk 0:02:34]} 13. Rxf3 {[%clk 0:01:11]}  Nd4 {[%clk 0:02:32]} 14. g5 {[%clk 0:01:12]}  Nxc2 {[%clk 0:02:32]} 15. Qd2 {[%clk 0:00:59]}  Nxa1 {[%clk 0:02:28]} 16. b3 {[%clk 0:00:58]}  Qb6 {[%clk 0:02:28]} 17. Qb2 {[%clk 0:00:54]}  c4+ {[%clk 0:02:08]} 18. Kf1 {[%clk 0:00:48]}  Nxb3 {[%clk 0:02:08]} 19. axb3 {[%clk 0:00:35]}  Qxb3 {[%clk 0:02:00]} 20. Qd2 {[%clk 0:00:35]}  d4 {[%clk 0:02:01]} 21. Ne4 {[%clk 0:00:33]}  c3 {[%clk 0:01:48]} 22. Qe1 {[%clk 0:00:31]}  Bd7 {[%clk 0:01:49]} 23. Nf2 {[%clk 0:00:26]}  Bc6 {[%clk 0:01:40]} 24. Rxh3 {[%clk 0:00:04]}  Rxh3 {[%clk 0:01:34]} 25. Nxh3 {[%clk 0:00:04]}  Bxh1 {[%clk 0:01:34]} 26. Kf2 {[%clk 0:00:05]}  Qc2+ {[%clk 0:01:34]} 27. Kg3 {[%clk 0:00:05]}  Qg2+ {[%clk 0:01:32]} 28. Kh4 {[%clk 0:00:03]}  O-O-O {[%clk 0:01:31]} 0-1


[Site "https://www.chess.com"]

[Event "Titled Tuesday Blitz January 10 Late 2023"]
[White "Jenkins, Drake"]
[Black "Lutz, Igor Oscar"]
[WhiteFideId "2022397"]
[BlackFideId "2110806"]
[WhiteElo "2130"]
[BlackElo "1969"]
[Result "1-0"]
[Round "05"]
[TimeControl "180+2"]
[Date "2023.01.10"]
[WhiteClock "0:01:04"]
[BlackClock "0:00:03"]

1. Nf3 {[%clk 0:00:00]}  d5 {[%clk 0:00:00]} 2. c4 {[%clk 0:02:51]}  e6 {[%clk 0:02:59]} 3. g3 {[%clk 0:02:51]}  Nf6 {[%clk 0:02:58]} 4. Bg2 {[%clk 0:02:51]}  dxc4 {[%clk 0:02:57]} 5. O-O {[%clk 0:02:51]}  c5 {[%clk 0:02:51]} 6. Na3 {[%clk 0:02:50]}  Nc6 {[%clk 0:02:49]} 7. Nxc4 {[%clk 0:02:49]}  Be7 {[%clk 0:02:49]} 8. d3 {[%clk 0:02:49]}  O-O {[%clk 0:02:49]} 9. a3 {[%clk 0:02:46]}  b5 {[%clk 0:02:44]} 10. Nfe5 {[%clk 0:02:46]}  Nxe5 {[%clk 0:02:00]} 11. Nxe5 {[%clk 0:02:44]}  Ba6 {[%clk 0:01:51]} 12. Nc6 {[%clk 0:02:44]}  Qc7 {[%clk 0:01:39]} 13. Nxe7+ {[%clk 0:02:43]}  Qxe7 {[%clk 0:01:34]} 14. Bxa8 {[%clk 0:02:41]}  Rxa8 {[%clk 0:01:34]} 15. Bg5 {[%clk 0:02:41]}  h6 {[%clk 0:01:35]} 16. Bxf6 {[%clk 0:02:26]}  Qxf6 {[%clk 0:01:33]} 17. Qc2 {[%clk 0:02:26]}  Rc8 {[%clk 0:01:33]} 18. b3 {[%clk 0:02:26]}  Bb7 {[%clk 0:01:14]} 19. Rac1 {[%clk 0:02:16]}  h5 {[%clk 0:01:00]} 20. Qd2 {[%clk 0:02:10]}  Qd4 {[%clk 0:01:00]} 21. Qg5 {[%clk 0:02:07]}  g6 {[%clk 0:00:44]} 22. b4 {[%clk 0:01:54]}  cxb4 {[%clk 0:00:34]} 23. Qxb5 {[%clk 0:01:41]}  Rxc1 {[%clk 0:00:20]} 24. Rxc1 {[%clk 0:01:30]}  Bd5 {[%clk 0:00:06]} 25. Qxb4 {[%clk 0:01:28]}  Qe5 {[%clk 0:00:06]} 26. e4 {[%clk 0:01:17]}  Ba2 {[%clk 0:00:05]} 27. Rc8+ {[%clk 0:01:10]}  Kh7 {[%clk 0:00:03]} 28. Qf8 {[%clk 0:01:04]} 1-0


[Site "https://www.chess.com"]

[Event "Titled Tuesday Blitz January 10 Late 2023"]
[White "Sanal, Vahap"]
[Black "Paravyan, David"]
[WhiteFideId "6300545"]
[BlackFideId "4194985"]
[WhiteElo "2600"]
[BlackElo "2601"]
[Result "0-1"]
[Round "06"]
[TimeControl "180+2"]
[Date "2023.01.10"]
[WhiteClock "0:00:07"]
[BlackClock "0:00:11"]

1. e4 {[%clk 0:00:00]}  e5 {[%clk 0:00:00]} 2. Nf3 {[%clk 0:03:00]}  Nf6 {[%clk 0:02:59]} 3. Nxe5 {[%clk 0:03:01]}  d6 {[%clk 0:03:00]} 4. Nf3 {[%clk 0:02:59]}  Nxe4 {[%clk 0:03:00]} 5. d4 {[%clk 0:03:00]}  d5 {[%clk 0:03:00]} 6. Bd3 {[%clk 0:02:59]}  Bd6 {[%clk 0:03:00]} 7. O-O {[%clk 0:03:00]}  O-O {[%clk 0:03:00]} 8. Nbd2 {[%clk 0:03:00]}  Bf5 {[%clk 0:03:01]} 9. Re1 {[%clk 0:02:55]}  Re8 {[%clk 0:03:00]} 10. Nf1 {[%clk 0:02:54]}  c6 {[%clk 0:03:00]} 11. Ng3 {[%clk 0:02:52]}  Bg6 {[%clk 0:03:00]} 12. Ne5 {[%clk 0:02:48]}  Bxe5 {[%clk 0:02:55]} 13. dxe5 {[%clk 0:02:33]}  Nd7 {[%clk 0:02:34]} 14. Nxe4 {[%clk 0:02:33]}  dxe4 {[%clk 0:02:32]} 15. Bxe4 {[%clk 0:02:18]}  Nxe5 {[%clk 0:02:28]} 16. Bxg6 {[%clk 0:02:19]}  hxg6 {[%clk 0:02:12]} 17. Qxd8 {[%clk 0:02:17]}  Raxd8 {[%clk 0:01:57]} 18. Kf1 {[%clk 0:01:49]}  f6 {[%clk 0:01:55]} 19. b3 {[%clk 0:01:50]}  Kf7 {[%clk 0:01:41]} 20. Bb2 {[%clk 0:01:49]}  Rd2 {[%clk 0:01:29]} 21. Rac1 {[%clk 0:01:45]}  Nd3 {[%clk 0:01:00]} 22. Rxe8 {[%clk 0:01:24]}  Kxe8 {[%clk 0:00:26]} 23. Bc3 {[%clk 0:01:02]}  Rxf2+ {[%clk 0:00:27]} 24. Kg1 {[%clk 0:00:37]}  Nxc1 {[%clk 0:00:21]} 25. Kxf2 {[%clk 0:00:37]}  Nxa2 {[%clk 0:00:21]} 26. Bd2 {[%clk 0:00:38]}  c5 {[%clk 0:00:21]} 27. c3 {[%clk 0:00:38]}  b5 {[%clk 0:00:18]} 28. b4 {[%clk 0:00:37]}  Kd7 {[%clk 0:00:18]} 29. Ke3 {[%clk 0:00:31]}  Kc6 {[%clk 0:00:17]} 30. Kd3 {[%clk 0:00:28]}  cxb4 {[%clk 0:00:14]} 31. cxb4 {[%clk 0:00:27]}  Kd5 {[%clk 0:00:06]} 32. g4 {[%clk 0:00:28]}  g5 {[%clk 0:00:06]} 33. h3 {[%clk 0:00:15]}  a6 {[%clk 0:00:05]} 34. Be1 {[%clk 0:00:14]}  Nc1+ {[%clk 0:00:06]} 35. Kd2 {[%clk 0:00:08]}  Nb3+ {[%clk 0:00:05]} 36. Kd3 {[%clk 0:00:04]}  Nd4 {[%clk 0:00:06]} 37. Bf2 {[%clk 0:00:04]}  Nc6 {[%clk 0:00:06]} 38. Bc5 {[%clk 0:00:05]}  a5 {[%clk 0:00:07]} 39. Bf8 {[%clk 0:00:05]}  Nxb4+ {[%clk 0:00:06]} 40. Kc3 {[%clk 0:00:05]}  g6 {[%clk 0:00:07]} 41. Be7 {[%clk 0:00:04]}  Ke6 {[%clk 0:00:07]} 42. Bd8 {[%clk 0:00:03]}  Nc6 {[%clk 0:00:07]} 43. Bb6 {[%clk 0:00:04]}  a4 {[%clk 0:00:07]} 44. Kd3 {[%clk 0:00:04]}  f5 {[%clk 0:00:07]} 45. Be3 {[%clk 0:00:04]}  f4 {[%clk 0:00:08]} 46. Bd2 {[%clk 0:00:04]}  Kd5 {[%clk 0:00:08]} 47. Bc3 {[%clk 0:00:05]}  Ne5+ {[%clk 0:00:08]} 48. Ke2 {[%clk 0:00:05]}  Ke4 {[%clk 0:00:08]} 49. Bb4 {[%clk 0:00:06]}  f3+ {[%clk 0:00:09]} 50. Kf1 {[%clk 0:00:06]}  Nc4 {[%clk 0:00:09]} 51. Be7 {[%clk 0:00:06]}  a3 {[%clk 0:00:10]} 52. Bxg5 {[%clk 0:00:06]}  a2 {[%clk 0:00:10]} 53. Bf6 {[%clk 0:00:07]}  b4 {[%clk 0:00:11]} 0-1


[Site "https://www.chess.com"]

[Event "Titled Tuesday Blitz January 10 Late 2023"]
[White "Naroditsky, Daniel"]
[Black "Zakhartsov, Vladimir"]
[WhiteFideId "2026961"]
[BlackFideId "4145097"]
[WhiteElo "2618"]
[BlackElo "2552"]
[Result "1/2-1/2"]
[Round "06"]
[TimeControl "180+2"]
[Date "2023.01.10"]
[WhiteClock "0:00:04"]
[BlackClock "0:00:06"]

1. e4 {[%clk 0:00:00]}  c5 {[%clk 0:00:00]} 2. Nf3 {[%clk 0:03:00]}  Nc6 {[%clk 0:02:58]} 3. Bb5 {[%clk 0:03:00]}  g6 {[%clk 0:02:58]} 4. O-O {[%clk 0:03:01]}  Bg7 {[%clk 0:02:57]} 5. c3 {[%clk 0:03:01]}  Nf6 {[%clk 0:02:57]} 6. e5 {[%clk 0:03:01]}  Nd5 {[%clk 0:02:46]} 7. d4 {[%clk 0:02:55]}  cxd4 {[%clk 0:02:46]} 8. cxd4 {[%clk 0:02:55]}  O-O {[%clk 0:02:44]} 9. Nc3 {[%clk 0:02:56]}  Nxc3 {[%clk 0:02:37]} 10. bxc3 {[%clk 0:02:56]}  d6 {[%clk 0:02:35]} 11. exd6 {[%clk 0:02:57]}  exd6 {[%clk 0:02:35]} 12. Re1 {[%clk 0:02:58]}  a6 {[%clk 0:02:28]} 13. Bd3 {[%clk 0:02:49]}  Be6 {[%clk 0:02:09]} 14. Ng5 {[%clk 0:02:43]}  Bd7 {[%clk 0:02:02]} 15. Qf3 {[%clk 0:02:36]}  Na5 {[%clk 0:01:59]} 16. Qg3 {[%clk 0:02:15]}  Bb5 {[%clk 0:01:52]} 17. Bc2 {[%clk 0:02:00]}  Nc4 {[%clk 0:01:49]} 18. Bf4 {[%clk 0:01:50]}  d5 {[%clk 0:01:22]} 19. h4 {[%clk 0:01:33]}  Qd7 {[%clk 0:01:10]} 20. h5 {[%clk 0:01:34]}  Rae8 {[%clk 0:00:59]} 21. Nf3 {[%clk 0:01:34]}  Ba4 {[%clk 0:00:48]} 22. Bb3 {[%clk 0:01:09]}  Rxe1+ {[%clk 0:00:44]} 23. Rxe1 {[%clk 0:00:53]}  Re8 {[%clk 0:00:39]} 24. Rxe8+ {[%clk 0:00:53]}  Qxe8 {[%clk 0:00:39]} 25. h6 {[%clk 0:00:49]}  Bf8 {[%clk 0:00:40]} 26. Bxc4 {[%clk 0:00:49]}  dxc4 {[%clk 0:00:37]} 27. Bd6 {[%clk 0:00:48]}  Bxh6 {[%clk 0:00:37]} 28. Ne5 {[%clk 0:00:48]}  Qe6 {[%clk 0:00:32]} 29. Bb4 {[%clk 0:00:49]}  b6 {[%clk 0:00:30]} 30. Ng4 {[%clk 0:00:39]}  Bg7 {[%clk 0:00:16]} 31. Qb8+ {[%clk 0:00:36]}  Be8 {[%clk 0:00:16]} 32. d5 {[%clk 0:00:35]}  Qe1+ {[%clk 0:00:17]} 33. Kh2 {[%clk 0:00:29]}  h5 {[%clk 0:00:17]} 34. Ne3 {[%clk 0:00:30]}  Qxf2 {[%clk 0:00:17]} 35. Qxe8+ {[%clk 0:00:30]}  Kh7 {[%clk 0:00:14]} 36. Bd6 {[%clk 0:00:31]}  Bxc3 {[%clk 0:00:15]} 37. Bg3 {[%clk 0:00:21]}  Qf6 {[%clk 0:00:12]} 38. d6 {[%clk 0:00:18]}  h4 {[%clk 0:00:12]} 39. Bf2 {[%clk 0:00:19]}  Qxf2 {[%clk 0:00:13]} 40. d7 {[%clk 0:00:06]}  Qg3+ {[%clk 0:00:08]} 41. Kh1 {[%clk 0:00:05]}  Qe1+ {[%clk 0:00:07]} 42. Kh2 {[%clk 0:00:04]}  Qg3+ {[%clk 0:00:05]} 43. Kh1 {[%clk 0:00:04]}  Qe1+ {[%clk 0:00:05]} 44. Kh2 {[%clk 0:00:04]}  Qg3+ {[%clk 0:00:06]} 1/2-1/2


[Site "https://www.chess.com"]

[Event "Titled Tuesday Blitz January 10 Late 2023"]
[White "Svane, Rasmus"]
[Black "Sevian, Samuel"]
[WhiteFideId "4657101"]
[BlackFideId "2040506"]
[WhiteElo "2623"]
[BlackElo "2684"]
[Result "1/2-1/2"]
[Round "06"]
[TimeControl "180+2"]
[Date "2023.01.10"]
[WhiteClock "0:00:06"]
[BlackClock "0:00:07"]

1. Nf3 {[%clk 0:00:00]}  d5 {[%clk 0:00:00]} 2. g3 {[%clk 0:03:00]}  g6 {[%clk 0:02:48]} 3. Bg2 {[%clk 0:03:00]}  Bg7 {[%clk 0:02:48]} 4. d4 {[%clk 0:03:00]}  Nf6 {[%clk 0:02:49]} 5. O-O {[%clk 0:03:01]}  c6 {[%clk 0:02:49]} 6. c4 {[%clk 0:03:01]}  dxc4 {[%clk 0:02:50]} 7. a4 {[%clk 0:03:02]}  h6 {[%clk 0:02:50]} 8. Na3 {[%clk 0:03:01]}  Be6 {[%clk 0:02:47]} 9. Qc2 {[%clk 0:02:29]}  Bd5 {[%clk 0:02:46]} 10. Nxc4 {[%clk 0:02:30]}  a5 {[%clk 0:02:29]} 11. Re1 {[%clk 0:02:27]}  Na6 {[%clk 0:02:29]} 12. Bd2 {[%clk 0:02:22]}  Bxc4 {[%clk 0:02:22]} 13. Qxc4 {[%clk 0:02:14]}  O-O {[%clk 0:01:36]} 14. e3 {[%clk 0:02:14]}  e6 {[%clk 0:01:36]} 15. Ne5 {[%clk 0:02:08]}  Nd5 {[%clk 0:01:36]} 16. Nd3 {[%clk 0:01:57]}  Qb6 {[%clk 0:01:36]} 17. Rec1 {[%clk 0:01:55]}  Rfd8 {[%clk 0:01:32]} 18. b3 {[%clk 0:01:47]}  Rac8 {[%clk 0:01:32]} 19. Rab1 {[%clk 0:01:46]}  Nab4 {[%clk 0:01:30]} 20. Nxb4 {[%clk 0:01:44]}  Nxb4 {[%clk 0:01:28]} 21. Qc5 {[%clk 0:01:33]}  Qxc5 {[%clk 0:01:28]} 22. Rxc5 {[%clk 0:01:30]}  Ra8 {[%clk 0:01:25]} 23. f4 {[%clk 0:01:31]}  Bf8 {[%clk 0:00:46]} 24. Rc4 {[%clk 0:01:22]}  h5 {[%clk 0:00:45]} 25. Kf2 {[%clk 0:01:21]}  Ra6 {[%clk 0:00:45]} 26. Ke2 {[%clk 0:01:20]}  Nd5 {[%clk 0:00:45]} 27. Rc2 {[%clk 0:01:19]}  Bb4 {[%clk 0:00:45]} 28. Bxd5 {[%clk 0:01:14]}  exd5 {[%clk 0:00:43]} 29. Bxb4 {[%clk 0:01:13]}  axb4 {[%clk 0:00:42]} 30. Kf3 {[%clk 0:01:14]}  Re8 {[%clk 0:00:43]} 31. Re1 {[%clk 0:01:09]}  Re4 {[%clk 0:00:43]} 32. h3 {[%clk 0:01:08]}  Ra8 {[%clk 0:00:39]} 33. g4 {[%clk 0:01:06]}  hxg4+ {[%clk 0:00:38]} 34. hxg4 {[%clk 0:01:05]}  Rae8 {[%clk 0:00:38]} 35. Ree2 {[%clk 0:01:06]}  Kg7 {[%clk 0:00:38]} 36. a5 {[%clk 0:01:04]}  Rh8 {[%clk 0:00:38]} 37. Rh2 {[%clk 0:00:50]}  Rhe8 {[%clk 0:00:38]} 38. Rhe2 {[%clk 0:00:49]}  Ra8 {[%clk 0:00:33]} 39. Ra2 {[%clk 0:00:48]}  Kf6 {[%clk 0:00:28]} 40. Ra4 {[%clk 0:00:47]}  b5 {[%clk 0:00:25]} 41. axb6 {[%clk 0:00:45]}  Rb8 {[%clk 0:00:20]} 42. Rxb4 {[%clk 0:00:44]}  Ke7 {[%clk 0:00:18]} 43. Rc2 {[%clk 0:00:38]}  Kd6 {[%clk 0:00:18]} 44. b7 {[%clk 0:00:35]}  Kc7 {[%clk 0:00:18]} 45. Rb5 {[%clk 0:00:32]}  Kd7 {[%clk 0:00:17]} 46. Rb6 {[%clk 0:00:32]}  Re6 {[%clk 0:00:10]} 47. b4 {[%clk 0:00:30]}  Kc7 {[%clk 0:00:11]} 48. Rb5 {[%clk 0:00:29]}  Kd7 {[%clk 0:00:10]} 49. Rbc5 {[%clk 0:00:29]}  Rxb7 {[%clk 0:00:08]} 50. b5 {[%clk 0:00:20]}  Rxb5 {[%clk 0:00:09]} 51. Rxb5 {[%clk 0:00:21]}  cxb5 {[%clk 0:00:08]} 52. Rc5 {[%clk 0:00:21]}  Rb6 {[%clk 0:00:09]} 53. Rxd5+ {[%clk 0:00:22]}  Ke6 {[%clk 0:00:09]} 54. Rc5 {[%clk 0:00:21]}  b4 {[%clk 0:00:08]} 55. Ke4 {[%clk 0:00:11]}  b3 {[%clk 0:00:09]} 56. Rc1 {[%clk 0:00:09]}  b2 {[%clk 0:00:07]} 57. Rb1 {[%clk 0:00:06]}  Rb3 {[%clk 0:00:07]} 58. d5+ {[%clk 0:00:07]}  Kd6 {[%clk 0:00:05]} 59. Kd4 {[%clk 0:00:07]}  f5 {[%clk 0:00:06]} 60. gxf5 {[%clk 0:00:08]}  gxf5 {[%clk 0:00:05]} 61. Kc4 {[%clk 0:00:07]}  Rb8 {[%clk 0:00:06]} 62. Kd4 {[%clk 0:00:05]}  Rb7 {[%clk 0:00:05]} 63. Kc4 {[%clk 0:00:04]}  Rc7+ {[%clk 0:00:04]} 64. Kd4 {[%clk 0:00:04]}  Rc2 {[%clk 0:00:04]} 65. Kd3 {[%clk 0:00:04]}  Rh2 {[%clk 0:00:04]} 66. Kd4 {[%clk 0:00:04]}  Rg2 {[%clk 0:00:04]} 67. Kc4 {[%clk 0:00:04]}  Rf2 {[%clk 0:00:05]} 68. Kd4 {[%clk 0:00:03]}  Re2 {[%clk 0:00:05]} 69. Kd3 {[%clk 0:00:04]}  Rh2 {[%clk 0:00:05]} 70. e4 {[%clk 0:00:04]}  fxe4+ {[%clk 0:00:04]} 71. Kxe4 {[%clk 0:00:04]}  Rd2 {[%clk 0:00:04]} 72. Ke3 {[%clk 0:00:04]}  Rh2 {[%clk 0:00:04]} 73. Kd4 {[%clk 0:00:04]}  Rd2+ {[%clk 0:00:04]} 74. Kc3 {[%clk 0:00:04]}  Rf2 {[%clk 0:00:05]} 75. Rxb2 {[%clk 0:00:05]}  Rxb2 {[%clk 0:00:05]} 76. Kxb2 {[%clk 0:00:05]}  Kxd5 {[%clk 0:00:06]} 77. f5 {[%clk 0:00:06]}  Ke5 {[%clk 0:00:07]} 78. f6 {[%clk 0:00:06]}  Kxf6 {[%clk 0:00:07]} 1/2-1/2


[Site "https://www.chess.com"]

[Event "Titled Tuesday Blitz January 10 Late 2023"]
[White "Hansen, Eric"]
[Black "Bortnyk, Olexandr"]
[WhiteFideId "2606771"]
[BlackFideId "14120828"]
[WhiteElo "2609"]
[BlackElo "2605"]
[Result "0-1"]
[Round "06"]
[TimeControl "180+2"]
[Date "2023.01.10"]
[WhiteClock "0:00:02"]
[BlackClock "0:00:03"]

1. Nf3 {[%clk 0:00:00]}  Nf6 {[%clk 0:00:00]} 2. g3 {[%clk 0:03:00]}  g6 {[%clk 0:02:58]} 3. Bg2 {[%clk 0:02:59]}  Bg7 {[%clk 0:02:58]} 4. O-O {[%clk 0:02:58]}  O-O {[%clk 0:02:59]} 5. c4 {[%clk 0:02:58]}  d6 {[%clk 0:02:58]} 6. Nc3 {[%clk 0:02:58]}  Nbd7 {[%clk 0:02:59]} 7. d4 {[%clk 0:02:57]}  e5 {[%clk 0:02:55]} 8. e4 {[%clk 0:02:57]}  c6 {[%clk 0:02:56]} 9. h3 {[%clk 0:02:58]}  Qb6 {[%clk 0:02:54]} 10. d5 {[%clk 0:02:58]}  cxd5 {[%clk 0:02:53]} 11. cxd5 {[%clk 0:02:56]}  Nc5 {[%clk 0:02:51]} 12. Nd2 {[%clk 0:02:55]}  Bd7 {[%clk 0:02:51]} 13. Nc4 {[%clk 0:02:54]}  Qa6 {[%clk 0:02:49]} 14. b3 {[%clk 0:02:46]}  b5 {[%clk 0:02:49]} 15. Nb2 {[%clk 0:02:45]}  b4 {[%clk 0:02:44]} 16. Nca4 {[%clk 0:02:45]}  Nfxe4 {[%clk 0:02:44]} 17. Nxc5 {[%clk 0:02:38]}  Nxc5 {[%clk 0:02:30]} 18. Be3 {[%clk 0:02:21]}  Rac8 {[%clk 0:02:31]} 19. a3 {[%clk 0:02:21]}  bxa3 {[%clk 0:02:27]} 20. Nc4 {[%clk 0:02:12]}  a2 {[%clk 0:02:17]} 21. Qc2 {[%clk 0:02:12]}  Nxb3 {[%clk 0:02:01]} 22. Qxb3 {[%clk 0:01:55]}  Qxc4 {[%clk 0:01:50]} 23. Qa3 {[%clk 0:01:55]}  f5 {[%clk 0:01:26]} 24. Rfc1 {[%clk 0:01:56]}  Qb5 {[%clk 0:01:21]} 25. Rxc8 {[%clk 0:01:43]}  Bxc8 {[%clk 0:01:17]} 26. Qxa2 {[%clk 0:01:38]}  a6 {[%clk 0:01:07]} 27. Rb1 {[%clk 0:01:34]}  Qd7 {[%clk 0:00:53]} 28. Rb6 {[%clk 0:01:19]}  f4 {[%clk 0:00:53]} 29. Bd2 {[%clk 0:01:18]}  fxg3 {[%clk 0:00:53]} 30. fxg3 {[%clk 0:01:15]}  e4 {[%clk 0:00:41]} 31. Be3 {[%clk 0:01:15]}  Be5 {[%clk 0:00:42]} 32. g4 {[%clk 0:01:15]}  Qe7 {[%clk 0:00:42]} 33. Qd2 {[%clk 0:01:09]}  Qh4 {[%clk 0:00:33]} 34. Bh6 {[%clk 0:00:56]}  Re8 {[%clk 0:00:30]} 35. Rb3 {[%clk 0:00:50]}  Qf6 {[%clk 0:00:20]} 36. Bg5 {[%clk 0:00:43]}  Bd4+ {[%clk 0:00:16]} 37. Be3 {[%clk 0:00:40]}  Bxe3+ {[%clk 0:00:14]} 38. Rxe3 {[%clk 0:00:30]}  Qf4 {[%clk 0:00:14]} 39. Qc3 {[%clk 0:00:31]}  Bd7 {[%clk 0:00:08]} 40. Qd4 {[%clk 0:00:28]}  Qe5 {[%clk 0:00:06]} 41. Qa7 {[%clk 0:00:26]}  Bb5 {[%clk 0:00:04]} 42. Qb6 {[%clk 0:00:22]}  Qa1+ {[%clk 0:00:03]} 43. Kh2 {[%clk 0:00:04]}  Qe5+ {[%clk 0:00:02]} 44. Kg1 {[%clk 0:00:05]}  Qf4 {[%clk 0:00:03]} 45. Qd4 {[%clk 0:00:05]}  Re7 {[%clk 0:00:04]} 46. Qb6 {[%clk 0:00:05]}  Qe5 {[%clk 0:00:03]} 47. Qb8+ {[%clk 0:00:05]}  Kg7 {[%clk 0:00:03]} 48. Qb6 {[%clk 0:00:04]}  Qf4 {[%clk 0:00:04]} 49. Qd4+ {[%clk 0:00:05]}  Qf6 {[%clk 0:00:03]} 50. Qb6 {[%clk 0:00:05]}  Bd3 {[%clk 0:00:04]} 51. Qb4 {[%clk 0:00:06]}  Qa1+ {[%clk 0:00:04]} 52. Re1 {[%clk 0:00:05]}  Qe5 {[%clk 0:00:04]} 53. Re3 {[%clk 0:00:05]}  Qxd5 {[%clk 0:00:05]} 54. Qc3+ {[%clk 0:00:06]}  Qe5 {[%clk 0:00:05]} 55. Qa3 {[%clk 0:00:06]}  Qc5 {[%clk 0:00:06]} 56. Qa1+ {[%clk 0:00:06]}  Re5 {[%clk 0:00:06]} 57. Qe1 {[%clk 0:00:05]}  a5 {[%clk 0:00:06]} 58. Kh1 {[%clk 0:00:05]}  a4 {[%clk 0:00:06]} 59. h4 {[%clk 0:00:05]}  a3 {[%clk 0:00:07]} 60. Qd2 {[%clk 0:00:03]}  a2 {[%clk 0:00:07]} 61. Re1 {[%clk 0:00:03]}  Bb1 {[%clk 0:00:07]} 62. Qb2 {[%clk 0:00:03]}  h5 {[%clk 0:00:06]} 63. g5 {[%clk 0:00:03]}  Kf7 {[%clk 0:00:06]} 64. Rf1+ {[%clk 0:00:03]}  Ke6 {[%clk 0:00:05]} 65. Bh3+ {[%clk 0:00:03]}  Kd5 {[%clk 0:00:04]} 66. Qb7+ {[%clk 0:00:03]}  Kd4 {[%clk 0:00:03]} 67. Rd1+ {[%clk 0:00:03]}  Bd3 {[%clk 0:00:03]} 68. Qb2+ {[%clk 0:00:03]}  Qc3 {[%clk 0:00:04]} 69. Qf2+ {[%clk 0:00:03]}  e3 {[%clk 0:00:05]} 70. Qxa2 {[%clk 0:00:03]}  e2 {[%clk 0:00:05]} 71. Qa7+ {[%clk 0:00:02]}  Qc5 {[%clk 0:00:05]} 72. Qa1+ {[%clk 0:00:02]}  Ke3 {[%clk 0:00:03]} 73. Re1 {[%clk 0:00:02]}  Re4 {[%clk 0:00:03]} 0-1


[Site "https://www.chess.com"]